Cogmind - Beta 17 @@@ ROGUE MODE // 2026.08.12 @ 19:28:38 Player: ae Result: Defending 0bPrime! Performance ------------- Evolutions (8) 4000 Regions Visited (20) 4000 Robots Destroyed (173) 865 Value Destroyed (6685) 6685 Prototype IDs (139) 2780 Alien Tech Used (5) 1000 Bonus (33679) 33679 TOTAL SCORE: 53009 Bonus ------- High Alert Combat Kills 3597 Follower Combat Kills 328 Registered with UFD 300 Met Optimus in HQ 500 Met Imprinter 300 Scanned by Researcher 500 Destroyed Superfortress 15000 Met Optimus at Protoforge 1000 Executed Drillbomb Mission 10000 Win 3000 Friendly Fire -846 Cogmind --------- Core Integrity 1144/1450 Matter 300/300 Energy 155/1450 System Corruption 0% Temperature Warm (172) Movement Flying (26) Location 0bPrime Parts ------- > --- POWER (2) -------- Micro Antimatter Reactor Hybrid Graviton Reactor > --- PROPULSION (8) --- Cooled Cesium-ion Thruster Field Propulsion Array Impulse Thruster Array Impulse Thruster Array Experimental Surge Thruster > --- UTILITY (11) ----- Large Storage Unit Plexus Tether Experimental Optical Array Experimental Active Sensor Suite Experimental Targeting Computer Experimental Core Analyzer Experimental Core Analyzer Experimental Reaction Control System Centrium Light Armor Plating Experimental System Purifier > --- WEAPON (2) ------- Core Cannon > --- INVENTORY (15) --- Cooled Cesium-ion Thruster Phase Redirector Mapping Drone Bay (3/3) Core Reset Matrix Terrabomb Omega Cannon Molecular Deconstructor Sigix Broadsword Sigix Corpse Sigix Corpse Peak State ------------ > --- POWER ------------ Micro Antimatter Reactor Hybrid Graviton Reactor > --- PROPULSION ------- Cooled Cesium-ion Thruster Field Propulsion Array Impulse Thruster Array Impulse Thruster Array Experimental Surge Thruster > --- UTILITY ---------- Large Storage Unit Plexus Tether Experimental Optical Array Experimental Active Sensor Suite Experimental Targeting Computer Experimental Core Analyzer Experimental Core Analyzer Experimental Reaction Control System Centrium Light Armor Plating Experimental System Purifier > --- WEAPON ----------- Core Cannon > --- INVENTORY -------- Cooled Cesium-ion Thruster Phase Redirector Mapping Drone Bay Core Reset Matrix Terrabomb Omega Cannon Molecular Deconstructor Sigix Broadsword Sigix Corpse Sigix Corpse [Rating: 216] Favorites ----------- Power Micro Antimatter Reactor Engine Subdweller Power Source Power Core Micro Fission Core Reactor Micro Antimatter Reactor Propulsion Cooled Cesium-ion Thruster Treads Light Treads Wheel Subdweller Monowheel Hover Unit Combat Airjet Flight Unit Cooled Cesium-ion Thruster Utility Large Storage Unit Device Experimental Active Sensor Suite Storage Large Storage Unit Processor Experimental Core Analyzer Hackware Hacking Suite Protection Improved Core Shielding Weapon Sigix Broadsword Energy Gun Tachyon Dispersion Ray Energy Cannon Subdweller Beam Cannon Ballistic Gun Light Assault Rifle Ballistic Cannon Omega Cannon Launcher Mini Grenade Launcher Special Weapon Molecular Deconstructor Impact Weapon Makeshift Hammer Slashing Weapon Sigix Broadsword Piercing Weapon Heavy Pick Special Melee Weapon Improved Datajack Build | -11 -10 -10 -8 -8 -6 -6 -6 -6 -5 -5 -5 -5 -4 -4 -4 -3 -3 -2 -2 -2 ------- Run | Yrd Mat Sub Rec Scr Fac Low Low Zio Pro Fac Was Fac Fac Was Fac Res Qua Res Tes Frg Slots Evolved 16 | . . . . . 8 . . . . 2 . . 2 . . 2 . 2 . . Power 1 | . . . . . 1 . . . . . . . . . . . . . . . Propulsion 6 | . . . . . 4 . . . . . . . 1 . . 1 . . . . Utility 9 | . . . . . 3 . . . . 2 . . 1 . . 1 . 2 . . Weapon . | . . . . . . . . . . . . . . . . . . . . . Parts Attached 173 | 7 2 12 4 4 28 10 1 1 2 23 . 13 10 2 9 1 9 . 6 29 Power 23 | 1 1 1 . . 2 2 . . . 5 . 5 . 1 . . 1 . . 4 Engine 8 | 1 1 1 . . 1 . . . . 2 . 2 . . . . . . . . Core 9 | . . . . . 1 2 . . . 3 . 3 . . . . . . . . Reactor 6 | . . . . . . . . . . . . . . 1 . . 1 . . 4 Propulsion 41 | 2 1 6 . 1 7 5 . . 1 5 . 2 2 . 2 . 2 . 1 4 Treads 5 | 2 1 2 . . . . . . . . . . . . . . . . . . Leg . | . . . . . . . . . . . . . . . . . . . . . Wheel 4 | . . 3 . 1 . . . . . . . . . . . . . . . . Hover 7 | . . . . . 6 . . . 1 . . . . . . . . . . . Flight 25 | . . 1 . . 1 5 . . . 5 . 2 2 . 2 . 2 . 1 4 Utility 75 | 2 . 1 2 2 14 1 1 . . 10 . 5 6 1 6 . 3 . 4 17 Device 37 | 1 . 1 . 1 6 . . . . 6 . 3 2 1 5 . 2 . 1 8 Storage 4 | 1 . . 1 . . . 1 . . . . . 1 . . . . . . . Processor 17 | . . . . 1 5 . . . . . . 2 2 . . . . . 2 5 Hackware 9 | . . . . . 2 1 . . . 4 . . . . 1 . . . . 1 Protection 8 | . . . 1 . 1 . . . . . . . 1 . . . 1 . 1 3 Artifact . | . . . . . . . . . . . . . . . . . . . . . Weapon 34 | 2 . 4 2 1 5 2 . 1 1 3 . 1 2 . 1 1 3 . 1 4 Energy Gun 1 | . . . . . . . . . . . . . . . . . . . 1 . Energy Cannon 4 | . . 1 . . . . . . . 1 . . . . . . 1 . . 1 Ballistic Gun 5 | 2 . 1 2 . . . . . . . . . . . . . . . . . Ballistic Cannon 2 | . . . . . . . . . . . . . . . . . . . . 2 Launcher 4 | . . 1 . . 1 . . . . . . . 1 . . . . . . 1 Special Weapon 5 | . . . . . 2 . . 1 1 1 . . . . . . . . . . Impact Weapon 1 | . . 1 . . . . . . . . . . . . . . . . . . Slashing Weapon 8 | . . . . 1 1 2 . . . . . 1 . . 1 . 2 . . . Piercing Weapon 2 | . . . . . 1 . . . . . . . . . . 1 . . . . Special Melee Weapon 2 | . . . . . . . . . . 1 . . 1 . . . . . . . Unidentified Prototypes 25 | . . . . . 3 . . 1 1 1 . 1 . 2 2 . 3 . 4 7 Parts Lost 25 | . . 1 1 . 3 . 1 . 2 11 . 2 . . 1 . . . . 3 Power 6 | . . . . . . . . . 1 3 . 1 . . . . . . . 1 Propulsion 7 | . . . . . 1 . . . 1 3 . . . . . . . . . 2 Utility 8 | . . 1 . . 1 . 1 . . 4 . . . . 1 . . . . . Weapon 4 | . . . 1 . 1 . . . . 1 . 1 . . . . . . . . Highest Loss Streak 4 | . . 1 1 . 1 . 1 . 1 4 . 1 . . 1 . . . . 2 To Critical Strikes 1 | . . . . . . . . . . . . . . . . . . . . 1 Average Backups 8 | 1 3 7 8 11 4 5 6 13 13 12 11 12 12 13 12 12 12 10 10 8 Power 1 | . . . . . . . . 1 1 . . . 1 1 1 3 1 1 1 1 Propulsion . | . . 2 3 3 . . . 1 1 3 3 3 2 2 2 2 2 . . . Utility 1 | . 1 . 1 2 2 2 2 4 4 2 3 3 4 6 5 3 3 2 2 1 Weapon 3 | . 1 3 4 5 . 1 2 6 6 4 4 4 3 3 3 4 3 3 3 3 Tool/Special . | . . . . . . . . . . . . . . . . . . . . . Unused Backups 48 | . . 7 . 7 2 1 . 2 1 7 . 4 2 . 2 . 6 . . 7 Power 7 | . . 2 . 1 . . . . . . . . 1 . . . 3 . . . Propulsion 14 | . . 1 . 2 . . . 1 . 3 . 1 . . 1 . 2 . . 3 Utility 12 | . . 1 . 1 1 1 . 1 . 1 . 3 1 . 1 . . . . 1 Weapon 10 | . . 2 . 3 1 . . . 1 2 . . . . . . . . . 1 Tool/Special 5 | . . 1 . . . . . . . 1 . . . . . . 1 . . 2 Average Slot Usage (%) 79 | . 82 90 88 70 64 92 96 100 97 86 82 89 87 89 88 89 92 82 88 79 Core 1 | . . . . . . 7 13 13 11 4 5 3 10 10 9 9 7 4 4 1 Reactor 3 | . . . . . . . . . . . . . . . . . 1 4 4 4 Flight 25 | . . . . 1 4 29 40 40 39 29 29 29 30 31 31 32 33 30 28 25 Device 12 | . 13 10 2 1 5 . . . . 10 5 10 10 10 9 13 14 13 15 12 Storage 4 | . 14 14 14 12 . . 2 6 6 5 5 5 5 5 5 4 4 4 4 4 Processor 16 | . . . . 1 14 13 13 13 13 5 5 5 5 5 5 4 4 4 7 16 Protection 7 | . . . 11 12 . 6 5 6 6 2 . . 3 5 4 4 4 4 4 7 Slashing Weapon 3 | . . . . 1 4 10 13 13 12 10 5 7 4 5 4 3 2 3 3 3 Peak Build Rating 216 | 7 7 16 15 12 57 61 61 66 74 82 71 86 102 103 108 122 155 155 168 216 Average Rating 183 | 4 5 10 12 10 38 57 58 62 62 73 70 74 93 97 100 120 134 152 160 193 On Entrance 69 | . 7 6 15 10 12 51 61 60 63 62 69 71 82 98 98 107 122 155 155 165 Avg Prop Armor Cover (%) 16 | 31 . 4 . 9 27 8 . . . 4 . . . 12 5 . . 2 . 5 Naked Turns . | . . . . . . . . . . . . . . . . . . . . . Heaviest Build 96 | 14 14 28 96 88 17 19 39 39 39 44 33 40 45 45 45 50 56 52 55 70 Greatest Support 66 | 40 40 40 40 40 50 44 44 44 44 42 39 42 51 48 54 53 66 66 57 66 Greatest Overweight (x) 18 | 1 2 1 2 5 1 . . . . 1 . 1 . 14 1 . . 1 1 18 Average Overweight (x) . | . . . 1 1 . . . . . . . . . . . . . . . . Largest Inventory Capacity 25 | 8 8 8 25 25 5 5 15 15 15 15 15 15 15 15 15 15 15 15 15 15 Average Capacity 15 | 6 8 8 20 23 5 5 9 15 15 15 15 15 15 15 15 15 15 15 15 15 Most Carried 19 | 4 5 8 10 19 5 5 11 15 15 15 15 15 15 15 15 15 15 15 15 15 Average Carried 12 | 1 3 7 8 11 4 5 7 14 14 14 14 14 14 15 14 14 14 14 14 13 Final Capacity 25 | 8 8 8 25 5 5 5 15 15 15 15 15 15 15 15 15 15 15 15 15 15 Final Carried 15 | 3 4 8 10 5 5 5 11 15 15 13 15 15 15 15 14 15 15 15 15 13 Class Distribution -------------------- 92% | Scavenger-Scout 3% | Mutant Dominant Class ---------------- Mutant | -10/Materials Scavenger-Mutant | -10/Subcaves Commander-Mutant | -8/Recycling Mutant | -8/Scraptown Scout | -6/Factory Derelict-Mutant | -6/Lower Caves Derelict-Mutant | -6/Lower Caves Derelict-Mutant | -6/Zion Derelict-Mutant | -5/Proximity Caves Hacker-Scout | -5/Factory Hacker-Sprinter | -5/Waste Hacker-Sprinter | -5/Factory Hacker-Scout | -4/Factory Hacker-Scout | -4/Waste Hacker-Scout | -4/Factory Hacker-Sprinter | -3/Research Hacker-Sprinter | -3/Quarantine Hacker-Sprinter | -2/Research Hacker-Sprinter | -2/Testing Scavenger-Scout | -2/Protoforge Resources | -11 -10 -10 -8 -8 -6 -6 -6 -6 -5 -5 -5 -5 -4 -4 -4 -3 -3 -2 -2 -2 ----------- Run | Yrd Mat Sub Rec Scr Fac Low Low Zio Pro Fac Was Fac Fac Was Fac Res Qua Res Tes Frg Matter Collected 8098 | 290 78 327 188 56 494 131 40 20 45 433 . 195 305 80 140 . 305 . 124 4847 Remotely 10 | . . . . . 10 . . . . . . . . . . . . . . . Salvage Created 7591 | 92 132 227 177 . 780 147 . 166 . 596 . 195 222 . 267 . 348 . 124 4118 Parts 233 | 7 6 10 7 . 41 2 . 2 . 24 . 14 15 . 15 . 16 . 6 68 Haulers Intercepted 12 | . 1 . . . 2 . . . . 3 . 1 1 . 1 . . . . 3 Recyclers Shooed 4 | . 1 . 1 . 1 . . . . . . . . . . . 1 . . . Parts Field Recycled . | . . . . . . . . . . . . . . . . . . . . . Retrieved Matter . | . . . . . . . . . . . . . . . . . . . . . Parts Self-Destructed 20 | . . 18 . . . 1 . 1 . . . . . . . . . . . . Prevented . | . . . . . . . . . . . . . . . . . . . . . Parts Restored . | . . . . . . . . . . . . . . . . . . . . . Kills | -11 -10 -10 -8 -8 -6 -6 -6 -6 -5 -5 -5 -5 -4 -4 -4 -3 -3 -2 -2 -2 ------- Run | Yrd Mat Sub Rec Scr Fac Low Low Zio Pro Fac Was Fac Fac Was Fac Res Qua Res Tes Frg Combat Hostiles Destroyed 94 | . 3 7 4 . 2 . . . . 6 . . 1 . . . . . . 71 Melee 22 | . . . 1 . 2 . . . . 2 . . 1 . . . . . . 16 Guns 8 | . 3 2 3 . . . . . . . . . . . . . . . . . Cannons 59 | . . 4 . . . . . . . 1 . . . . . . . . . 54 AOE 3 | . . . . . . . . . . 3 . . . . . . . . . . Classes Destroyed 24 | 2 3 2 4 . 5 . . . . . . . 1 . . . . . . 7 Worker 13 | . . . . . 3 . . . . 3 . 2 1 . 2 . . . 2 . Builder 10 | . . . . . 2 . . . . . . 1 3 . 1 . 3 . . . Tunneler 5 | 1 . . . . . . . . . 1 . 3 . . . . . . . . Hauler 13 | . 1 . . . 2 . . . . 3 . 1 1 . 1 . . . . 4 Recycler 6 | 1 . . . . 2 . . . . 1 . . . . . . 2 . . . Mechanic 22 | . . . . . 2 . . . . . . . 1 . . . . . . 19 Operator 3 | . . . . . 1 . . . . 1 . . . . . . 1 . . . Drone 18 | . . . . . . . . . . . . . 1 . . . . . . 17 Turret 2 | . . 2 . . . . . . . . . . . . . . . . . . Watcher 8 | . 1 . . . . . . . . 2 . . . . 2 . . . 2 1 Swarmer 16 | . 3 3 . . . . . . . 5 . . . . . . . . . 5 Saboteur 1 | . . . . . . . . . . . . . . . . . . . . 1 Grunt 14 | . . . 1 . . . . . . 1 . . . . . . . . . 12 Brawler 8 | . . . 1 . . . . . . . . . . . . . . . . 7 Duelist 4 | . . . . . . . . . . . . . . . . . . . . 4 Protector 5 | . . . 1 . . . . . . . . . . . . . . . . 4 Researcher 1 | . . . . . . . . . . . . . . . . . . . . 1 Sentry 1 | . . . 1 . . . . . . . . . . . . . . . . . Hunter 7 | . . . . . . . . . . . . . . . . . . . . 7 Programmer 5 | . . . . . 2 . . . . . . . . . . . . . . 3 Striker 6 | . . . . . . . . . . . . . . . . . . . . 6 Executioner 5 | . . . . . . . . . . . . . . . . . . . . 5 Subdweller 4 | . . 4 . . . . . . . . . . . . . . . . . . Scrapoid 1 | . . . . . . . . . . . . . . . . . . . . 1 Best Kill Streak 19 | 2 3 2 2 . 2 . . . . 6 . 1 2 . 2 . 2 . 2 19 Combat Bots Only 9 | . 3 2 2 . 1 . . . . 5 . . 1 . . . . . . 9 Max Kills in Single Turn 3 | 1 1 2 1 . 1 . . . . 3 . 1 1 . 1 . 1 . 1 1 Gunslinging . | . . . . . . . . . . . . . . . . . . . . . Exploded 2 | . . . . . . . . . . 2 . . . . . . . . . . Melee 1 | . . . 1 . 1 . . . . 1 . . 1 . . . . . . 1 Uniques/NPCs Destroyed . | . . . . . . . . . . . . . . . . . . . . . Combat | -11 -10 -10 -8 -8 -6 -6 -6 -6 -5 -5 -5 -5 -4 -4 -4 -3 -3 -2 -2 -2 -------- Run | Yrd Mat Sub Rec Scr Fac Low Low Zio Pro Fac Was Fac Fac Was Fac Res Qua Res Tes Frg Hostile Shots Fired 450 | . 14 40 16 . 106 3 10 . 13 75 . 34 20 . 20 2 4 3 4 86 Missed 221 | . 3 10 3 . 55 2 6 . 7 35 . 21 13 . 14 1 2 1 . 48 Hits 229 | . 11 30 13 . 51 1 4 . 6 40 . 13 7 . 6 1 2 2 4 38 Melee 3 | . . . 3 . . . . . . . . . . . . . . . . . Projectile 226 | . 11 30 10 . 51 1 4 . 6 40 . 13 7 . 6 1 2 2 4 38 AOE 3 | . . . . . . . . . . 3 . . . . . . . . . . Critical Strikes 10 | . . . 2 . 2 . . . 1 2 . 1 . . . . . . . 2 Part Disruptions 1 | . . . . . . . . . . 1 . . . . . . . . . . Damage Taken 4113 | . 88 483 259 . 682 16 70 . 92 822 . 256 97 . 82 23 47 71 48 977 Core 1008 | . 26 89 84 . 243 . . . 20 386 . 16 43 . . 23 . . . 78 Absorbed by Shields 9 | . . . 9 . . . . . . . . . . . . . . . . . Redirected to Shielding 32 | . . . . . . . . . . . . . . . . . . . . 32 Regen/Repaired (Parts) 344 | . . . . . . . . . . . . . . 28 15 . . 23 106 172 Core Remaining (%) 74 | 100 . . . 20 . . . . 69 . . 59 . . 96 . 98 . . 78 Volleys Fired 447 | 5 25 59 4 . 6 . . . . 15 . 9 6 . 8 2 7 2 . 299 Largest 2 | 2 2 2 2 . 1 . . . . 1 . 1 1 . 1 1 1 1 . 1 Hottest 300 | 40 40 105 60 . 30 . . . . 90 . 90 90 . 90 90 90 90 . 300 Shots Fired 492 | 10 49 71 8 . 6 . . . . 15 . 9 6 . 8 2 7 2 . 299 Gun 95 | 10 49 28 8 . . . . . . . . . . . . . . . . . Cannon 333 | . . 37 . . . . . . . 13 . 8 6 . 8 2 7 2 . 250 Launcher 11 | . . 6 . . 5 . . . . . . . . . . . . . . . Special 53 | . . . . . 1 . . . . 2 . 1 . . . . . . . 49 Kinetic 336 | 10 49 34 8 . . . . . . . . . . . . . . . . 235 Thermal 98 | . . 37 . . . . . . . 13 . 8 6 . 8 2 7 2 . 15 Explosive 7 | . . . . . 5 . . . . 2 . . . . . . . . . . Electromagnetic . | . . . . . . . . . . . . . . . . . . . . . Robot Hit Streak 19 | 4 6 10 14 . 5 . . . . 8 . . . . 9 . . . . 19 Robot Miss Streak 4 | 1 4 3 2 . 1 . . . . . . . . . . . . . . 4 Penetration Max . | . . . . . . . . . . . . . . . . . . . . . Secondary Targets . | . . . . . . . . . . . . . . . . . . . . . Shots Hit Robots 446 | 8 27 34 12 . 39 6 . 5 . 43 . 19 25 . 15 . 9 . 4 200 Core Hits 190 | 3 12 11 5 . 16 1 . 2 . 20 . 5 7 . 6 . 4 . 2 96 Critical Kills 3 | . . 1 1 . . . . . . . . . . . . . . . . 1 Critical Parts Destroyed 1 | . 1 . . . . . . . . . . . . . . . . . . . Critical Strikes 40 | . 1 1 1 . 3 . . . . 5 . 2 1 . 1 . . . . 25 Meltdown 1 | . . 1 . . . . . . . . . . . . . . . . . . Destroy 2 | . 1 . . . . . . . . . . . . . . . . . . 1 Blast 24 | . . . . . . . . . . . . . . . . . . . . 24 Smash 1 | . . . 1 . . . . . . . . . . . . . . . . . Sever 10 | . . . . . 1 . . . . 5 . 2 1 . 1 . . . . . Impale 2 | . . . . . 2 . . . . . . . . . . . . . . . Melee Attacks 493 | . . 3 11 . 86 20 1 7 6 99 . 66 53 . 35 13 30 3 10 50 Impact 14 | . . 3 11 . . . . . . . . . . . . . . . . . Slashing 424 | . . . . . 59 18 1 7 6 97 . 66 48 . 35 12 12 3 10 50 Piercing 48 | . . . . . 27 2 . . . . . . . . . 1 18 . . . Sneak Attacks 96 | . . . . . 14 1 . . . 17 . 9 13 . 6 . 7 . 2 27 Combat Hostiles 2 | . . . . . . . . . . . . . 1 . . . . . . 1 Follow-up Attacks 10 | . . . . . 1 . . 1 . 8 . . . . . . . . . . Damage Inflicted 30072 | 78 309 1002 402 . 1790 390 . 333 . 2926 . 1024 1180 . 972 . 929 . 576 18161 Guns 672 | 78 301 145 148 . . . . . . . . . . . . . . . . . Cannons 13951 | . . 683 . . . . . . . 33 . . . . 31 . . . . 13204 Explosions 1135 | . . 174 . . 125 . . . . 836 . . . . . . . . . . Melee 14197 | . . . 238 . 1665 390 . 333 . 1964 . 1024 1180 . 941 . 929 . 576 4957 Ramming 24 | . 8 . 16 . . . . . . . . . . . . . . . . . Kinetic 13611 | 78 301 319 148 . . . . . . . . . . . . . . . . 12765 Thermal 1186 | . . 683 . . . . . . . 33 . . . . 31 . . . . 439 Explosive 961 | . . . . . 125 . . . . 836 . . . . . . . . . . Electromagnetic . | . . . . . . . . . . . . . . . . . . . . . Impact 238 | . . . 238 . . . . . . . . . . . . . . . . . Slashing 13127 | . . . . . 1266 390 . 333 . 2057 . 1024 1180 . 941 . 403 . 576 4957 Piercing 925 | . . . . . 399 . . . . . . . . . . . 526 . . . Highest Corruption 16 | . . . 2 . 5 5 5 5 . 1 8 16 . . . . . . . 1 Average Corruption 4 | . . . 2 . 3 5 5 5 . 1 4 10 . . . . . . . 1 Corruption Purged 6 | . . . . . 5 . . . . . . . . . . . . . . 1 Corruption Blocked . | . . . . . . . . . . . . . . . . . . . . . Effects 79 | . . . 8 . 27 9 1 . . . 1 31 . . . . . . . 2 Message Errors 21 | . . . 3 . 6 2 1 . . . . 8 . . . . . . . 1 Matter Fused 17 | . . . 1 . 7 5 . . . . . 4 . . . . . . . . Heat Flow Errors 11 | . . . 3 . 2 2 . . . . . 4 . . . . . . . . Energy Discharges 10 | . . . 1 . 4 . . . . . . 4 . . . . . . . 1 Data Loss (minor) 12 | . . . . . 6 . . . . . . 6 . . . . . . . . Data Loss (major) 4 | . . . . . 2 . . . . . 1 1 . . . . . . . . Alerts 1 | . . . . . . . . . . . . 1 . . . . . . . . Misdirections 3 | . . . . . . . . . . . . 3 . . . . . . . . Overload Shots . | . . . . . . . . . . . . . . . . . . . . . Overflow Damage 5133 | . . 39 46 . 197 191 . 103 . 294 . 213 219 . 140 . 225 . 287 3179 Projectiles 1336 | . . . . . . . . . . 19 . . . . . . . . . 1317 Explosions 175 | . . 39 . . 33 . . . . 103 . . . . . . . . . . Melee 3622 | . . . 46 . 164 191 . 103 . 172 . 213 219 . 140 . 225 . 287 1862 Knockbacks 18 | . . . 1 . . . . . . . . . . . . . . . . 17 Impact 1 | . . . 1 . . . . . . . . . . . . . . . . . Kinetic 16 | . . . . . . . . . . . . . . . . . . . . 16 Secondary 1 | . . . . . . . . . . . . . . . . . . . . 1 Self-Inflicted Damage . | . . . . . . . . . . . . . . . . . . . . . Shots . | . . . . . . . . . . . . . . . . . . . . . Rammed 6 | . 3 . 2 . . . . . . . . 1 . . . . . . . . Targets Rammed 6 | . 3 . 2 . . . . . . . . 1 . . . . . . . . Kicked . | . . . . . . . . . . . . . . . . . . . . . Crushed . | . . . . . . . . . . . . . . . . . . . . . Highest Temperature 345 | . . 30 240 . 133 243 195 . 7 88 . 256 144 2 109 . 53 48 345 172 Average Temperature 81 | . . 15 99 . 68 137 92 . 5 34 . 84 48 2 35 . 53 48 138 89 Received Heat Transfer 366 | . . 60 57 . 93 . . . 9 84 . 24 12 . 9 . . . . 18 Effects 3 | . . . . . . . . . . . . . . . . . . . 3 . Interference 3 | . . . . . . . . . . . . . . . . . . . 3 . Siege Activations . | . . . . . . . . . . . . . . . . . . . . . Martial Activations . | . . . . . . . . . . . . . . . . . . . . . Shielding Activations . | . . . . . . . . . . . . . . . . . . . . . Robots Disrupted . | . . . . . . . . . . . . . . . . . . . . . Combat Hostiles . | . . . . . . . . . . . . . . . . . . . . . Robots Corrupted . | . . . . . . . . . . . . . . . . . . . . . Combat Hostiles . | . . . . . . . . . . . . . . . . . . . . . Parts Fried . | . . . . . . . . . . . . . . . . . . . . . Impact Corruptions 3 | . . . 3 . . . . . . . . . . . . . . . . . Robots Melted 1 | . . 1 . . . . . . . . . . . . . . . . . . Combat Hostiles 1 | . . 1 . . . . . . . . . . . . . . . . . . Parts Melted 5 | . . 5 . . . . . . . . . . . . . . . . . . Heat Transferred 1181 | . . 925 . . . . . . . 50 . . . . 50 . . . . 156 Parts Sabotaged . | . . . . . . . . . . . . . . . . . . . . . Parts Stolen . | . . . . . . . . . . . . . . . . . . . . . Parts Stripped . | . . . . . . . . . . . . . . . . . . . . . Power Chain Reactions . | . . . . . . . . . . . . . . . . . . . . . Alert | -11 -10 -10 -8 -8 -6 -6 -6 -6 -5 -5 -5 -5 -4 -4 -4 -3 -3 -2 -2 -2 ------- Run | Yrd Mat Sub Rec Scr Fac Low Low Zio Pro Fac Was Fac Fac Was Fac Res Qua Res Tes Frg Maximum Alert Level 5 | . . . . . . . . . . 1 . 1 . . . . . . . 5 Low Security (%) 4 | 100 100 . 100 . 100 . . . . 92 100 71 100 100 100 100 100 100 100 . Level 1 42 | . . . . . . . . . . 7 . 28 . . . . . . . 43 Level 2 1 | . . . . . . . . . . . . . . . . . . . . 1 Level 3 51 | . . . . . . . . . . . . . . . . . . . . 52 Level 4 . | . . . . . . . . . . . . . . . . . . . . . Level 5 . | . . . . . . . . . . . . . . . . . . . . . High Security . | . . . . . . . . . . . . . . . . . . . . . Max Security . | . . . . . . . . . . . . . . . . . . . . . Peak Influence 2577 | 10 90 . 97 . 181 . . . . 220 38 273 166 92 188 168 132 73 50 2577 Initial 125 | . . . 45 . . . . . . . 38 19 125 56 43 98 86 67 33 22 Average 558 | 1 15 . 15 . 56 . . . . 112 34 107 118 65 111 125 96 65 25 575 Influence Increases 7361 | 10 114 280 140 . 702 90 45 15 . 670 . 656 269 116 525 116 204 12 129 3268 Destroy 0b10 Robot/C 1580 | . 60 100 100 . 40 . . . . 120 . . . . 140 . . . . 1020 Destroy 0b10 Robot/NC 555 | 10 10 . 5 . 60 15 . 15 . 55 . 35 35 . 45 . 30 . 20 220 Destroy Leader 236 | . 14 . . . 24 . . . . 20 . 2 2 . 28 . . . 4 142 Allied During Kill 49 | . . . 4 . . . . . . . . . . . 45 . . . . . Successful Hack 206 | . . . . . 36 . . . . 19 . 38 . . 32 . 18 . 21 42 Select Force Hacks 20 | . . . . . 20 . . . . . . . . . . . . . . . Disable Machine 435 | . . . . . 15 . . . . 45 . 45 45 . 60 . 120 . 30 75 Destroy Structure 1220 | . . . 1 . 57 . . . . 126 . 86 52 116 40 26 36 12 9 659 Partial Spotted 195 | . . . . . 30 . . . . . . 30 30 . 15 15 . . 15 60 Lose Combat Pursuer 2865 | . 30 180 30 . 420 75 45 . . 285 . 420 105 . 120 75 . . 30 1050 Influence Decreases 4784 | 10 62 238 234 . 528 236 68 20 . 561 81 427 366 214 399 150 238 73 148 731 Entered New Map 742 | . . 26 49 . . 66 6 5 . . 71 9 132 104 19 90 68 53 26 18 Time Decay 3442 | 10 62 212 145 . 488 170 52 15 . 431 10 298 214 90 190 60 170 20 122 683 Search Patrol Dispatched 100 | . . . . . . . . . . . . 100 . . . . . . . . Lost Part 210 | . . . 10 . 20 . 10 . . 110 . 20 . . 10 . . . . 30 Lost Ally 290 | . . . 30 . 20 . . . . 20 . . 20 20 180 . . . . . Squads Dispatched 86 | . . . . . 17 . . . . 18 . 11 9 . 9 2 2 2 3 13 Investigation 45 | . . . . . 9 . . . . 10 . 7 4 . 5 2 . . . 8 Extermination 15 | . . . . . 5 . . . . 3 . 2 1 . 1 . 1 . 2 . Reinforcement 23 | . . . . . 3 . . . . 5 . 2 1 . 3 . 1 2 1 5 Assault . | . . . . . . . . . . . . . . . . . . . . . Garrison 3 | . . . . . . . . . . . . . 3 . . . . . . . Intercept . | . . . . . . . . . . . . . . . . . . . . . Searches Triggered 1 | . . . . . . . . . . . . 1 . . . . . . . . Construction Impeded 1 | . . . . . . . . . . 1 . . . . . . . . . . Haulers Reinforced 5 | . . . . . 1 . . . . 2 . . 1 . 1 . . . . . Active Scanning Responses . | . . . . . . . . . . . . . . . . . . . . . Cargo Convoy Interrupts 1 | . . . . . . . . . . . . 1 . . . . . . . . Stealth | -11 -10 -10 -8 -8 -6 -6 -6 -6 -5 -5 -5 -5 -4 -4 -4 -3 -3 -2 -2 -2 --------- Run | Yrd Mat Sub Rec Scr Fac Low Low Zio Pro Fac Was Fac Fac Was Fac Res Qua Res Tes Frg Distress Signals 266 | . . . . . 2 . . . . 2 . 8 4 . 3 1 . . . 246 Communications Jammed 8 | . . . . . . . . . . . . . . . . . 8 . . . Distress Signals 8 | . . . . . . . . . . . . . . . . . 8 . . . Times Spotted 470 | . 8 10 8 . 36 8 3 . 4 41 5 41 18 7 20 6 7 5 9 234 Peak Tracking Total 19 | . 3 4 5 . 6 4 3 . 4 7 5 13 8 5 6 7 6 5 3 19 Tactical Retreats 92 | . 1 3 1 . 14 2 1 . . 9 . 12 4 1 6 2 . . 1 35 Traps | -11 -10 -10 -8 -8 -6 -6 -6 -6 -5 -5 -5 -5 -4 -4 -4 -3 -3 -2 -2 -2 ------- Run | Yrd Mat Sub Rec Scr Fac Low Low Zio Pro Fac Was Fac Fac Was Fac Res Qua Res Tes Frg Traps Triggered 21 | . 6 . . . 2 . . . . 4 . 3 1 . . . 1 . 1 3 Indirectly . | . . . . . . . . . . . . . . . . . . . . . Trap Hack Attempts . | . . . . . . . . . . . . . . . . . . . . . Triggered . | . . . . . . . . . . . . . . . . . . . . . Disarmed . | . . . . . . . . . . . . . . . . . . . . . Reprogrammed . | . . . . . . . . . . . . . . . . . . . . . Reused . | . . . . . . . . . . . . . . . . . . . . . Traps Extracted . | . . . . . . . . . . . . . . . . . . . . . Installed . | . . . . . . . . . . . . . . . . . . . . . Triggered . | . . . . . . . . . . . . . . . . . . . . . Machines | -11 -10 -10 -8 -8 -6 -6 -6 -6 -5 -5 -5 -5 -4 -4 -4 -3 -3 -2 -2 -2 ---------- Run | Yrd Mat Sub Rec Scr Fac Low Low Zio Pro Fac Was Fac Fac Was Fac Res Qua Res Tes Frg Machines Disabled 37 | . . 4 . . 1 . . . . 3 . 3 3 . 4 . 8 . 2 9 Max in Single Turn 2 | . . 1 . . 1 . . . . 1 . 1 1 . 1 . 1 . 1 2 Garrison Access 4 | . . . . . 1 . . . . . . 1 . . . . . . 1 1 Machines Repaired . | . . . . . . . . . . . . . . . . . . . . . Machines Dismantled . | . . . . . . . . . . . . . . . . . . . . . Machines Sabotaged . | . . . . . . . . . . . . . . . . . . . . . Overloaded Fab Kills . | . . . . . . . . . . . . . . . . . . . . . Hacking | -11 -10 -10 -8 -8 -6 -6 -6 -6 -5 -5 -5 -5 -4 -4 -4 -3 -3 -2 -2 -2 --------- Run | Yrd Mat Sub Rec Scr Fac Low Low Zio Pro Fac Was Fac Fac Was Fac Res Qua Res Tes Frg Machines Accessed 101 | . 2 1 . 4 18 1 . 1 . 15 . 14 9 . 9 3 4 3 4 13 Terminals 37 | . 1 . . . 7 1 . . . 5 . 5 3 . 2 1 2 2 2 6 Fabricators 10 | . . . . . 3 . . . . 2 . . 1 . 1 . . . . 3 Repair Stations 2 | . . . . . . . . . . . . . . . 1 . . . 1 . Recycling Units 34 | . 1 . . . 6 . . . . 8 . 6 3 . 5 2 . . . 3 Scanalyzers 7 | . . . . . 1 . . . . . . 2 1 . . . 2 1 . . Garrison Access 5 | . . . . . 1 . . . . . . 1 1 . . . . . 1 1 Total Hacks 245 | . 5 1 . 31 30 2 . 4 . 30 . 37 17 . 24 3 11 9 10 31 Successful 162 | . 2 1 . 31 18 2 . 4 . 20 . 24 10 . 13 3 7 5 8 14 Failed 80 | . 3 . . . 12 . . . . 10 . 12 6 . 11 . 3 4 2 17 Catastrophic 10 | . . . . . 4 . . . . . . 2 1 . . . 1 . . 2 Database Lockouts 3 | . . . . . . . . . . . . 1 1 . . . 1 . . . Manual 130 | . 2 . . . 21 . . . 1 24 . 21 8 . 13 2 5 5 5 23 Terminals 98 | . 2 . . . 15 2 . . . 12 . 17 7 . 10 1 5 6 6 15 Fabricators 21 | . . . . . 5 . . . . 5 . . 2 . 5 . . . . 4 Repair Stations 4 | . . . . . . . . . . . . . . . 2 . . . 2 . Recycling Units 50 | . 3 . . . 6 . . . . 13 . 7 3 . 7 2 . . . 9 Scanalyzers 24 | . . . . . 3 . . . . . . 10 2 . . . 6 3 . . Garrison Access 12 | . . . . . 1 . . . . . . 3 3 . . . . . 2 3 Terminal Hacks 60 | . . 1 . 31 . 2 . 4 . 3 . 4 2 . 2 1 1 2 2 5 Record 30 | . . . . 23 . 2 . . . . . . . . . . . . . 5 Part Schematic 4 | . . . . . . . . 4 . . . . . . . . . . . . Robot Analysis 7 | . . . . 7 . . . . . . . . . . . . . . . . Prototype ID Bank 2 | . . . . . . . . . . 1 . . . . 1 . . . . . Open Door 1 | . . . . . . . . . . . . . . . . 1 . . . . Level Access Points 2 | . . . . . . . . . . . . 1 . . . . 1 . . . Branch Access Points 3 | . . . . . . . . . . . . 1 . . 1 . . 1 . . Terminal Index 1 | . . . . . . . . . . . . . . . . . . 1 . . Recycling Unit Index 1 | . . . . . . . . . . 1 . . . . . . . . . . Alert Level 1 | . . . . . . . . . . . . . 1 . . . . . . . Locate Traps 3 | . . . . . . . . . . . . 1 1 . . . . . 1 . Hauler Manifests 2 | . . . . . . . . . . 1 . 1 . . . . . . . . Zone Layout 1 | . . . . . . . . . . . . . . . . . . . 1 . Proto ID Catalog 2 | . . 1 . 1 . . . . . . . . . . . . . . . . Fabricator Hacks 8 | . . . . . 2 . . . . 2 . . 1 . 3 . . . . . Network Status 1 | . . . . . . . . . . . . . . . 1 . . . . . Load Schematic 6 | . . . . . 2 . . . . 2 . . 1 . 1 . . . . . Build 1 | . . . . . . . . . . . . . . . 1 . . . . . Repair Station Hacks 4 | . . . . . . . . . . . . . . . 2 . . . 2 . Scan Component 2 | . . . . . . . . . . . . . . . 1 . . . 1 . Repair 2 | . . . . . . . . . . . . . . . 1 . . . 1 . Recycling Unit Hacks 1 | . 1 . . . . . . . . . . . . . . . . . . . Retrieve Components 1 | . 1 . . . . . . . . . . . . . . . . . . . Scanalyzer 20 | . . . . . 3 . . . . . . 9 1 . . . 5 2 . . Insert Component 9 | . . . . . 1 . . . . . . 2 . . . . 4 2 . . Analyze 4 | . . . . . 2 . . . . . . 2 . . . . . . . . Retrieve Study 7 | . . . . . . . . . . . . 5 1 . . . 1 . . . Garrison Access Hacks 4 | . . . . . 1 . . . . . . 1 . . . . . . 1 1 Seal Access 4 | . . . . . 1 . . . . . . 1 . . . . . . 1 1 Unauthorized Hacks 65 | . 1 . . . 12 . . . . 15 . 10 6 . 6 2 1 1 3 8 Terminals 26 | . 1 . . . 4 . . . . 6 . 4 2 . 1 . 1 1 3 3 Track 5 | . . . . . . . . . . . . 1 . . . . . . 1 3 Assimilate 4 | . 1 . . . . . . . . 3 . . . . . . . . . . Botnet 15 | . . . . . 4 . . . . 2 . 2 2 . 1 . 1 1 2 . Operators 2 | . . . . . . . . . . 1 . 1 . . . . . . . . Fabricators 9 | . . . . . 2 . . . . 2 . . 1 . 1 . . . . 3 Prioritize 1 | . . . . . . . . . . . . . . . 1 . . . . . Fabnet 3 | . . . . . . . . . . . . . . . . . . . . 3 Download 1 | . . . . . 1 . . . . . . . . . . . . . . . Recompile 4 | . . . . . 1 . . . . 2 . . 1 . . . . . . . Repair Stations . | . . . . . . . . . . . . . . . . . . . . . Recycling Units 30 | . . . . . 6 . . . . 7 . 6 3 . 4 2 . . . 2 Mask 1 | . . . . . . . . . . . . . . . . . . . . 1 Fedlink 29 | . . . . . 6 . . . . 7 . 6 3 . 4 2 . . . 1 Scanalyzers . | . . . . . . . . . . . . . . . . . . . . . Garrison Access . | . . . . . . . . . . . . . . . . . . . . . Data Cores Recovered . | . . . . . . . . . . . . . . . . . . . . . Used . | . . . . . . . . . . . . . . . . . . . . . Hacking Detections 45 | . 1 . . . 10 1 . . . 6 . 5 3 . 3 . 2 2 2 10 Full Trace Events 7 | . . . . . 1 . . . . 1 . . . . 1 . . . . 4 Feedback Events 2 | . . . . . 1 . . . . . . . . . . . . . . 1 Corruption 2 | . . . . . 1 . . . . . . . . . . . . . . 1 Feedback Blocked . | . . . . . . . . . . . . . . . . . . . . . Robot Schematics Acquired 5 | . . . . . . . . 3 . . . . . . . . . . . 2 Robots Built . | . . . . . . . . . . . . . . . . . . . . . Authchips . | . . . . . . . . . . . . . . . . . . . . . Time . | . . . . . . . . . . . . . . . . . . . . . Total Robot Build Rating . | . . . . . . . . . . . . . . . . . . . . . Part Schematics Acquired 28 | . . . . . 2 . . 18 . . . 1 . . . . . . . 7 Parts Built 1 | . . . . . . . . . . . . . . . 1 . . . . . Authchips 1 | . . . . . . . . . . . . . . . 1 . . . . . Time 76 | . . . . . . . . . . . . . . . 76 . . . . . Total Part Build Rating 5 | . . . . . . . . . . . . . . . 5 . . . . . Part Studies Acquired 7 | . . . . . . . . . . . . 5 1 . . . 1 . . . Parts Repaired 2 | . . . . . . . . . . . . . . . 1 . . . 1 . Time 84 | . . . . . . . . . . . . . . . 28 . . . 56 . Parts Recycled . | . . . . . . . . . . . . . . . . . . . . . Recycled Matter . | . . . . . . . . . . . . . . . . . . . . . Retrieved Matter . | . . . . . . . . . . . . . . . . . . . . . Retrieved Components 2 | . 2 . . . . . . . . . . . . . . . . . . . Parts Scanalyzed 2 | . . . . . 1 . . . . . . 1 . . . . . . . . Part Schematics Acquired 2 | . . . . . 1 . . . . . . 1 . . . . . . . . Parts Damaged . | . . . . . . . . . . . . . . . . . . . . . Bothacking | -11 -10 -10 -8 -8 -6 -6 -6 -6 -5 -5 -5 -5 -4 -4 -4 -3 -3 -2 -2 -2 ------------ Run | Yrd Mat Sub Rec Scr Fac Low Low Zio Pro Fac Was Fac Fac Was Fac Res Qua Res Tes Frg Used RIF Installer . | . . . . . . . . . . . . . . . . . . . . . Robots Hacked 4 | . . . . . . . . . . 2 . . 2 . . . . . . . Non-combat 4 | . . . . . . . . . . 2 . . 2 . . . . . . . Combat . | . . . . . . . . . . . . . . . . . . . . . Robot Hacks Applied 4 | . . . . . . . . . . 2 . . 2 . . . . . . . find_chute 4 | . . . . . . . . . . 2 . . 2 . . . . . . . Relay Couplers Released . | . . . . . . . . . . . . . . . . . . . . . Fabnet Peak Effective % . | . . . . . . . . . . . . . . . . . . . . . Robots Rewired 7 | . . . 6 . . . . . . . . . 1 . . . . . . . Allies Hacked . | . . . . . . . . . . . . . . . . . . . . . Hacks Repelled . | . . . . . . . . . . . . . . . . . . . . . Allies | -11 -10 -10 -8 -8 -6 -6 -6 -6 -5 -5 -5 -5 -4 -4 -4 -3 -3 -2 -2 -2 -------- Run | Yrd Mat Sub Rec Scr Fac Low Low Zio Pro Fac Was Fac Fac Was Fac Res Qua Res Tes Frg Total Allies 29 | . 1 . 6 . . . . . . 2 . . 1 19 . . . . . . Largest Group 19 | . 1 1 5 3 3 . . . . 1 . . 1 19 11 . . . . . Highest-Rated Group 684 | . 10 10 109 72 72 . . . . 10 . . 56 684 438 . . . . . Highest-Rated Ally 56 | . 10 10 27 27 27 . . . . 10 . . 56 50 50 . . . . . Initial UFD Resources 128 | . . . . . 22 44 44 44 46 46 70 70 85 101 101 112 126 128 128 128 Total Orders 13 | . . 2 . 4 . . . . . . . . . . . . 4 . . 3 STAY 6 | . . 1 . 3 . . . . . . . . . . . . 2 . . . FOLLOW 2 | . . 1 . 1 . . . . . . . . . . . . . . . . RETURN 5 | . . . . . . . . . . . . . . . . . 2 . . 3 Ally Attacks 188 | . . . 9 . 1 . . . . . . . 4 115 59 . . . . . Total Damage 7478 | . . . 126 . 32 . . . . . . . 157 5514 1649 . . . . . Kills 26 | . . . 2 . . . . . . . . . . 13 11 . . . . . Allies Corrupted . | . . . . . . . . . . . . . . . . . . . . . Allies Melted 112 | . . . . . . . . . . . . . . . . . . . . 112 Intel | -11 -10 -10 -8 -8 -6 -6 -6 -6 -5 -5 -5 -5 -4 -4 -4 -3 -3 -2 -2 -2 ------- Run | Yrd Mat Sub Rec Scr Fac Low Low Zio Pro Fac Was Fac Fac Was Fac Res Qua Res Tes Frg Active Infowar (turns) 195897 | 57 377 790 . 336 1513 341 151 373 234 1106 31 686 451 198 394 129 342 49 263 188076 Optics 190805 | . . 4 . 336 1513 341 151 373 234 77 . . . . . . . . . 187776 Sensors 4627 | . . . . . 853 . . . . 1029 31 686 451 195 387 129 342 49 263 212 A.S.S. 187849 | . . . . . . . . . . . . . . . . . . . . 187849 Terrain 1 | . . . . . . . . . . . . . . . . . 1 . . . Structural 1800 | . . . . . 38 . 4 . 1 930 . . 270 198 359 . . . . . Seismic 2012 | 57 377 786 . . . . . . . . . 614 178 . . . . . . . T.N.C. 199 | . . . . . 199 . . . . . . . . . . . . . . . Jamming 215 | . . . . . . . . . . . . . . . 23 2 26 . 6 158 Robot Analysis Total 7 | . . . . 7 . . . . . . . . . . . . . . . . Derelict Logs Recovered 9 | . . . . 5 . 2 1 . 1 . . . . . . . . . . . Drone Launches 13 | . . . . . . . . . . . . . . . . . 4 . . 9 Drone Recoveries 13 | . . . . . . . . . . . . . . . . . 4 . . 9 Exploration | -11 -10 -10 -8 -8 -6 -6 -6 -6 -5 -5 -5 -5 -4 -4 -4 -3 -3 -2 -2 -2 ------------- Run | Yrd Mat Sub Rec Scr Fac Low Low Zio Pro Fac Was Fac Fac Was Fac Res Qua Res Tes Frg Turns Passed 202183 | 92 400 1883 840 4465 1513 341 151 373 234 1106 31 686 451 198 394 129 342 49 278 188227 Spaces Moved 24619 | 75 191 1101 249 1957 2411 555 378 994 287 2086 95 1446 918 279 941 397 748 155 604 8752 Core 953 | 53 6 . . . 889 . . . . . . . . 4 . . . . . 1 Treads 2361 | 22 185 745 249 1160 . . . . . . . . . . . . . . . . Legs . | . . . . . . . . . . . . . . . . . . . . . Wheels 424 | . . 356 . 68 . . . . . . . . . . . . . . . . Hover 229 | . . . . . 229 . . . . . . . . . . . . . . . Flight 20652 | . . . . 729 1293 555 378 994 287 2086 95 1446 918 275 941 397 748 155 604 8751 Fastest Speed 7 | 50 150 110 160 45 40 35 35 35 35 28 31 29 21 25 12 20 7 7 15 7 Average Speed 53 | 82 159 145 290 223 45 39 35 35 35 31 31 30 25 35 23 20 19 20 20 23 Slowest Speed 950 | 160 160 160 340 340 100 44 35 35 37 99 31 104 29 750 99 22 20 96 98 950 Overloaded Moves 130 | . . . . . . . . . . . . . 5 . 9 . 12 9 46 49 Propulsion Burnouts . | . . . . . . . . . . . . . . . . . . . . . Robots Hopped 149 | . . . . . 11 . . . . 11 8 1 4 5 8 5 8 3 8 77 Potential Cave-ins 3 | . . . . . . . . . . . . . . . . . . . . 3 Cave-ins Triggered . | . . . . . . . . . . . . . . . . . . . . . Teleports 1 | . . . . . . . . . . . . . . . . . . . . 1 Exploration Rate (%) 53 | 3 39 41 57 89 55 64 66 85 48 54 67 55 25 90 27 16 90 5 71 76 Regions Visited 20 Branch Regions 10 Pre-discovered Areas 9 | . . 1 . 5 1 2 . . . . . . . . . . . . . . Known Exits Taken 11 | . . . . . 1 1 1 1 1 . . 1 . . 1 1 1 1 1 . Unknown Exits Taken 5 | 1 1 1 1 1 . . . . . . . . . . . . . . . . Scrap Searched 36 | . . 7 . 9 . 9 4 3 4 . . . . . . . . . . . Spaces Dug 309 | . . 1 . . 44 11 1 1 6 49 . 39 21 . 16 12 14 3 3 88 Terrain Destroyed 413 | . . 38 1 . 57 11 1 1 6 64 . 47 26 . 21 13 18 5 3 101 Melee 225 | . . . . . 44 11 1 1 6 46 . 39 20 . 15 12 13 3 3 11 Projectile 137 | . . 6 1 . . . . . . 12 . 8 6 . 6 1 5 2 . 90 AOE 51 | . . 32 . . 13 . . . . 6 . . . . . . . . . . Terrain Rammed . | . . . . . . . . . . . . . . . . . . . . . Walls Destroyed . | . . . . . . . . . . . . . . . . . . . . . Machines Disabled . | . . . . . . . . . . . . . . . . . . . . . Actions | -11 -10 -10 -8 -8 -6 -6 -6 -6 -5 -5 -5 -5 -4 -4 -4 -3 -3 -2 -2 -2 --------- Run | Yrd Mat Sub Rec Scr Fac Low Low Zio Pro Fac Was Fac Fac Was Fac Res Qua Res Tes Frg Total 212248 | 94 236 1319 343 2051 2663 649 393 1009 411 2391 87 1581 1041 372 1032 418 872 160 725 194401 Wait 185919 | . 4 104 7 55 85 57 7 . 107 85 . 18 26 89 19 . 26 . 83 185147 Move 24351 | 74 190 1100 248 1956 2390 554 377 993 286 2066 82 1444 911 270 926 387 733 151 587 8626 Hop 102 | . . . . . 9 . . . . 9 4 1 3 3 6 4 6 . 8 49 Pick Up 147 | 5 3 21 1 13 9 2 5 6 1 16 1 6 7 1 6 4 13 . 2 25 Fast Attach 138 | 6 9 3 1 1 24 9 1 . 4 17 . 7 5 4 5 1 6 1 9 25 Attach 86 | 2 2 4 1 3 8 . . . . 11 . 2 1 . 4 2 4 1 2 39 Detach 68 | 1 . . 3 3 8 . . . . 4 . 2 1 . . . . 1 1 44 Swap 133 | . . 7 2 1 8 1 2 2 2 28 . 13 18 . 14 3 15 . 1 16 Drop 207 | 1 . 18 1 19 18 8 . 2 5 24 . 13 10 5 9 2 18 1 7 46 Fire 447 | 5 25 59 4 . 6 . . . . 15 . 9 6 . 8 2 7 2 . 299 Melee 479 | . . 3 11 . 85 18 1 6 6 90 . 66 53 . 35 13 29 3 10 50 Ram . | . . . . . . . . . . . . . . . . . . . . . Kick . | . . . . . . . . . . . . . . . . . . . . . Crush 5 | . 3 . 2 . . . . . . . . . . . . . . . . . Escape Stasis 84 | . . . . . 13 . . . . 26 . . . . . . 15 . 15 15 Rewire 62 | . . . 62 . . . . . . . . . . . . . . . . . Trap . | . . . . . . . . . . . . . . . . . . . . . Miscellaneous 20 | . . . . . . . . . . . . . . . . . . . . 20 Route ------- -11/Scrapyard -10/Materials (discovered 2 exits: [*Mat] / *Sub) -10/Subcaves (discovered 2 exits: [*Mat] / [*Rec]) -8/Recycling -8/Scraptown (discovered 2 exits: *Fac x2) -6/Factory (discovered 3 exits: *Fac / *Low x2) -6/Lower Caves -6/Lower Caves (discovered 2 exits: Fac / *Zio) -6/Zion -5/Proximity Caves -5/Factory (discovered 5 exits: *Fac x3 / *Upp x2) -5/Waste -5/Factory (discovered 8 exits: *Fac x4 / *Upp x2 / Ext x2) -4/Factory -4/Waste -4/Factory (discovered 3 exits: *Res / Upp x2) -3/Research (discovered 4 exits: Res x2 / Arm / *Qua) -3/Quarantine -2/Research (discovered 4 exits: Acc x2 / *Tes x2) -2/Testing (discovered 3 exits: *Acc / [*Sec] / *Frg) -2/Protoforge 0bPrime History --------- Turn | Location | Event 11 | -11/Scrapyard | Discovered new exit (range 16) 93 | -11/Scrapyard | Entered Materials 315 | -10/Materials | Build established: Mutant 395 | -10/Materials | Discovered new exit (range 3) 479 | -10/Materials | Discovered new exit (range 10) 493 | -10/Materials | Entered Subcaves 493 | -10/Subcaves | Accompanied by 1 ally 494 | -10/Subcaves | Approached by a straggling Scientist 705 | -10/Subcaves | Build established: Scavenger-Mutant 843 | -10/Subcaves | Learned location of Zion (-6) 843 | -10/Subcaves | Met a Zionite searching for "candidates" 859 | -10/Subcaves | Shifting Twisted Machinery released Sub. Power Source 1274 | -10/Subcaves | Disturbed a concealed Subdweller 1337 | -10/Subcaves | Discovered new exit (range 8) 1339 | -10/Subcaves | Shifting Twisted Machinery released Flamer 1632 | -10/Subcaves | Shifting Twisted Machinery released Sub. Monowheel 2004 | -10/Subcaves | Visited 4L-MR0's lab 2178 | -10/Subcaves | Build established: Mutant 2351 | -10/Subcaves | Discovered new exit (range 14) 2376 | -10/Subcaves | Entered Recycling 2376 | -8/Recycling | Accompanied by 1 ally 2382 | -8/Recycling | Core integrity fell below 50% 2799 | -8/Recycling | Build established: Commander-Mutant 2875 | -8/Recycling | Scanned before Scraplab entrance 3179 | -8/Recycling | Entered Scraplab 3206 | -8/Recycling | Discovered new exit (range 2) 3216 | -8/Recycling | Entered Scraptown 3216 | -8/Scraptown | Accompanied by 3 allies 3216 | -8/Scraptown | System corruption cleaned by C-Scrubber 3247 | -8/Scraptown | Heard Great Nut preacher, LISTEN AND RECITE! 3249 | -8/Scraptown | Build established: Mutant 3631 | -8/Scraptown | Visited Comm Corps 3713 | -8/Scraptown | Visited The Evicted 3764 | -8/Scraptown | Visited Cyclists 3794 | -8/Scraptown | Visited UFD Registry 3794 | -8/Scraptown | Registered with UFD as "Wrenchdome" 3842 | -8/Scraptown | Entered Cyclist Reading Room 3961 | -8/Scraptown | Visited Awakened 4015 | -8/Scraptown | Visited Bundlers 4211 | -8/Scraptown | Visited Spacefarers 4238 | -8/Scraptown | Visited Junk Repository 4570 | -8/Scraptown | Scanned Subdweller tech in exchange for log data 4577 | -8/Scraptown | Learned Factory garrison access intel 4580 | -8/Scraptown | Learned location of Warlord (-4) 4587 | -8/Scraptown | Learned Research trap positions 4594 | -8/Scraptown | Learned Factory terminal intel 4966 | -8/Scraptown | Visited Scrapoid Research Area 5075 | -8/Scraptown | Visited Abandonware Association 5109 | -8/Scraptown | Learned abandonware demo "TRNCOAT.EXE" 5116 | -8/Scraptown | Learned abandonware demo "OVRCLOCK.EXE" 5211 | -8/Scraptown | Visited Science Guys 5330 | -8/Scraptown | Visited Analyses Database 5405 | -8/Scraptown | Visited Cartography Club 5435 | -8/Scraptown | Visited Observation Area 5483 | -8/Scraptown | Visited Scrap Suit Storage 5531 | -8/Scraptown | Visited DA-N13 Charitable Foundation 5561 | -8/Scraptown | Found DCF Scrap (31 items) 5616 | -8/Scraptown | Visited Chapter 10 5663 | -8/Scraptown | Visited LU-1G1's Boring Crew 7330 | -8/Scraptown | Learned location of Archives (-5) 7330 | -8/Scraptown | Learned location of Armory (-3) 7330 | -8/Scraptown | Learned 8 Research zone layouts 7330 | -8/Scraptown | Learned 16 Research zone layouts 7330 | -8/Scraptown | Learned 20 Lower Caves zone layouts 7330 | -8/Scraptown | Learned 8 Upper Caves zone layouts 7330 | -8/Scraptown | Learned 16 Upper Caves zone layouts 7330 | -8/Scraptown | Learned 24 Upper Caves zone layouts 7330 | -8/Scraptown | Learned 12 Proximity Caves zone layouts 7330 | -8/Scraptown | Learned 20 Proximity Caves zone layouts 7330 | -8/Scraptown | Learned 4 Armory zone layouts 7330 | -8/Scraptown | Learned Materials emergency access door positions 7330 | -8/Scraptown | Learned location of 2 exits from Research 7330 | -8/Scraptown | Learned location of 1 exit from Upper Caves 7330 | -8/Scraptown | Learned location of 3 exits from Upper Caves 7346 | -8/Scraptown | Found Deep Structural Scanner 7380 | -8/Scraptown | Discovered new exit (range 3) 7523 | -8/Scraptown | Discovered new exit (range 11) 7656 | -8/Scraptown | Met Optimus 7656 | -8/Scraptown | Accepted into 0bPrime 7681 | -8/Scraptown | Entered Factory 7681 | -6/Factory | Accompanied by 3 allies 7681 | -6/Factory | Evolved 8 slots: Power x1, Propulsion x4, Utility x3 7682 | -6/Factory | Identified exit to Lower Caves 7683 | -6/Factory | Loaded intel: 26 terminal locations 7684 | -6/Factory | Loaded intel: 4 garrison access locations 8231 | -6/Factory | Build established: Scout 8337 | -6/Factory | Loaded intel: 8 recycling unit locations 8420 | -6/Factory | Learned location of Protoforge (-2) 8586 | -6/Factory | Discovered new exit (range 5) 8588 | -6/Factory | Identified exit to Factory 9123 | -6/Factory | Discovered exit to Lower Caves (range 4) 9125 | -6/Factory | Build established: Hacker-Mutant 9194 | -6/Factory | Entered Lower Caves 9195 | -6/Lower Caves | Identified exit to Lower Caves 9334 | -6/Lower Caves | Spotted B-75 Beast 9533 | -6/Lower Caves | Build established: Derelict-Mutant 9533 | -6/Lower Caves | Learned location of Extension (-5) 9535 | -6/Lower Caves | Entered another Lower Caves area 9537 | -6/Lower Caves | Ambushed by research squad 9679 | -6/Lower Caves | Discovered new exit (range 7) 9681 | -6/Lower Caves | Identified exit to Zion 9685 | -6/Lower Caves | Learned Factory non-interactive machine intel 9686 | -6/Lower Caves | Entered Zion 9687 | -6/Zion | Identified exit to Proximity Caves 9699 | -6/Zion | System corruption cleaned by Quarantine Array 9737 | -6/Zion | Found Prototype Special Weapon 9738 | -6/Zion | Found Prototype Special Weapon 9739 | -6/Zion | Found Prototype Special Weapon 9741 | -6/Zion | Found Prototype Special Weapon 9743 | -6/Zion | Identified RU-N14's Throwing Claymores (x4) 9787 | -6/Zion | Received a visual enhancement algorithm 9985 | -6/Zion | Turned away by Imprinter 10059 | -6/Zion | Entered Proximity Caves 10072 | -5/Proximity Caves | Acquired the password to a Derelict Tinkerer's latest research 10077 | -5/Proximity Caves | Found Prototype Special Weapon 10077 | -5/Proximity Caves | Identified Molecular Deconstructor 10136 | -5/Proximity Caves | Learned 4 Factory zone layouts 10293 | -5/Proximity Caves | Entered Factory 10293 | -5/Factory | Evolved 2 slots: Utility x2 10294 | -5/Factory | Identified exit to Upper Caves 10296 | -5/Factory | Loaded intel: 219 non-interactive machine locations 10534 | -5/Factory | Loaded intel: 8 recycling unit locations 10684 | -5/Factory | Discovered new exit (range 15) 10902 | -5/Factory | Build established: Hacker-Scout 10917 | -5/Factory | Discovered new exit (range 10) 10920 | -5/Factory | Identified exit to Factory 11271 | -5/Factory | Discovered exit to Factory (range 10) 11399 | -5/Factory | Manually triggered Chute Trap 11399 | -5/Factory | Sucked down chute 11399 | -5/Factory | Entered Waste 11409 | -5/Waste | Spotted C-40 Crusher 11411 | -5/Waste | Spotted C-40 Crusher 11414 | -5/Waste | EMP discharged 11418 | -5/Waste | Spotted C-40 Crusher 11418 | -5/Waste | Spotted C-40 Crusher 11425 | -5/Waste | Spotted C-40 Crusher 11425 | -5/Waste | Discovered new exit (range 11) 11425 | -5/Waste | Spotted C-40 Crusher 11427 | -5/Waste | Lost 4 parts (1p1n1u1w) 11429 | -5/Waste | Identified exit to Factory 11430 | -5/Waste | Entered Factory 11599 | -5/Factory | System corruption reached 10% 11667 | -5/Factory | Build established: Hacker-Sprinter 11672 | -5/Factory | Loaded intel: 7 recycling unit locations 11843 | -5/Factory | Central database locked down 12030 | -5/Factory | Search patrols dispatched 12058 | -5/Factory | Identified exit to Extension 12115 | -5/Factory | Cargo convoy interrupted 12116 | -5/Factory | Entered another Factory area 12116 | -4/Factory | Evolved 2 slots: Propulsion x1, Utility x1 12316 | -4/Factory | Loaded intel: 8 recycling unit locations 12343 | -4/Factory | Central database locked down 12349 | -4/Factory | Garrison activated, responded to threat 12350 | -4/Factory | Found Exp. Signal Interpreter 12396 | -4/Factory | Discovered new exit (range 12) 12399 | -4/Factory | Identified exit to Research 12567 | -4/Factory | Manually triggered Chute Trap 12567 | -4/Factory | Sucked down chute 12567 | -4/Factory | Entered Waste 12570 | -4/Waste | Spotted C-40 Crusher 12573 | -4/Waste | Spotted C-40 Crusher 12577 | -4/Waste | Spotted C-40 Crusher 12581 | -4/Waste | Spotted C-40 Crusher 12586 | -4/Waste | Spotted C-40 Crusher 12586 | -4/Waste | Spotted C-40 Crusher 12595 | -4/Waste | Warlord forces began an assault 12600 | -4/Waste | Build established: Hacker-Scout 12602 | -4/Waste | Allies destroyed C-40 Crusher 12623 | -4/Waste | Allies destroyed C-40 Crusher 12633 | -4/Waste | Allies destroyed C-40 Crusher 12651 | -4/Waste | Found Prototype Device 12651 | -4/Waste | Identified Adv. Kinecellerator 12663 | -4/Waste | Found Prototype Reactor 12663 | -4/Waste | Identified Zero-point Reactor 12664 | -4/Waste | Lost 7 allies 12703 | -4/Waste | Discovered new exit (range 10) 12705 | -4/Waste | Identified exit to Factory 12765 | -4/Waste | Entered Factory 12765 | -4/Factory | Accompanied by 11 allies 12769 | -4/Factory | Identified exit to Upper Caves 12851 | -4/Factory | Repaired Field Propulsion Drive+ 12892 | -4/Factory | Loaded intel: 8 recycling unit locations 12916 | -4/Factory | Fabricated Cld. Cesium-ion Thruster? 13017 | -4/Factory | Spotted B-86 Titan 13150 | -4/Factory | Discovered exit to Research (range 15) 13159 | -4/Factory | Entered Research 13159 | -3/Research | Evolved 2 slots: Propulsion x1, Utility x1 13160 | -3/Research | Identified exit to Armory 13160 | -3/Research | Identified exit to Quarantine 13161 | -3/Research | Identified exit to Research 13162 | -3/Research | Loaded intel: 92 trap records 13175 | -3/Research | Loaded intel: 5 recycling unit locations 13288 | -3/Research | Entered Quarantine 13327 | -3/Quarantine | Found Alien Artifact 13351 | -3/Quarantine | Central database locked down 13366 | -3/Quarantine | Found Alien Artifact 13366 | -3/Quarantine | Identified Dimensional Node Initializer 13366 | -3/Quarantine | Initialized slip node 13374 | -3/Quarantine | Found Dimensional Node Initializer 13377 | -3/Quarantine | Found Alien Artifact 13400 | -3/Quarantine | Identified Transdimensional Reconstructor 13400 | -3/Quarantine | Identified Core Reset Matrix 13400 | -3/Quarantine | Watched by a mysterious "MATRIX" hacker 13435 | -3/Quarantine | Found Alien Artifact 13436 | -3/Quarantine | Identified Subatomic Replicator 13436 | -3/Quarantine | Used Subatomic Replicator to create Alien Artifact 13469 | -3/Quarantine | Build established: Hacker-Sprinter 13484 | -3/Quarantine | Found Alien Artifact 13534 | -3/Quarantine | Found Sigix Corpse 13539 | -3/Quarantine | Found Sigix Corpse 13549 | -3/Quarantine | Found Alien Slashing Weapon 13549 | -3/Quarantine | Identified Sigix Broadsword 13581 | -3/Quarantine | Found Alien Energy Cannon 13614 | -3/Quarantine | Found Alien Artifact 13630 | -3/Quarantine | Entered Research 13630 | -2/Research | Evolved 2 slots: Utility x2 13631 | -2/Research | Identified exit to Access 13634 | -2/Research | Identified Phase Redirector 13634 | -2/Research | Identified Supercharged TR 13657 | -2/Research | Identified exit to Testing 13679 | -2/Research | Entered Testing 13686 | -2/Testing | Found Prototype Processor 13686 | -2/Testing | Identified Spectral Analyzer 13749 | -2/Testing | Discovered exit to Access (range 11) 13793 | -2/Testing | Found Prototype Energy Gun 13793 | -2/Testing | Identified Tachyon Dispersion Ray 13873 | -2/Testing | Repaired Field Propulsion Drive+? 13923 | -2/Testing | Spotted Fortress 13943 | -2/Testing | Discovered new exit (range 6) 13943 | -2/Testing | Discovered new exit (range 6) 13944 | -2/Testing | Identified exit to Protoforge 13957 | -2/Testing | Entered Protoforge 14007 | -2/Protoforge | Identified Core Cannon 14065 | -2/Protoforge | UFD initiated attack on Protoforge (Readiness: Maximal) 14065 | -2/Protoforge | Loaded intel: 3 recycling unit locations 14069 | -2/Protoforge | Spotted EXE-6 14069 | -2/Protoforge | Spotted EXE-6 14085 | -2/Protoforge | Superfortress began startup sequence 14092 | -2/Protoforge | Spotted Decapitator 14092 | -2/Protoforge | Spotted Decapitator 14109 | -2/Protoforge | Optimus greeted in Protoforge 14120 | -2/Protoforge | Initialized slip node 14137 | -2/Protoforge | Warped through subspace to slip node 14139 | -2/Protoforge | Spotted Executioner 14143 | -2/Protoforge | Optimus attacked Superfortress 14143 | -2/Protoforge | Spotted EXE-6 14155 | -2/Protoforge | Spotted Executioner 14155 | -2/Protoforge | Spotted Immortal 14155 | -2/Protoforge | Spotted Decapitator 14161 | -2/Protoforge | Spotted Striker 14163 | -2/Protoforge | Found Prototype Ballistic Cannon 14165 | -2/Protoforge | Found Prototype Launcher 14167 | -2/Protoforge | Found Prototype Device 14167 | -2/Protoforge | Identified Thermal Barrier 14171 | -2/Protoforge | Found Prototype Device 14171 | -2/Protoforge | Identified Cep. Antimissile System 14174 | -2/Protoforge | Found Prototype Device 14174 | -2/Protoforge | Identified Exp. EM Disruption Field 14194 | -2/Protoforge | Lost 20 allies 14202 | -2/Protoforge | Forge Plexus network access discovered 14305 | -2/Protoforge | Spotted V746-q 14305 | -2/Protoforge | Spotted V884-z 14311 | -2/Protoforge | Scanned by Researcher 14320 | -2/Protoforge | Found Exp. Active Sensor Suite 14345 | -2/Protoforge | Spotted Striker 14350 | -2/Protoforge | Spotted Striker 14390 | -2/Protoforge | Lost 9 allies 14406 | -2/Protoforge | Spotted Striker 14406 | -2/Protoforge | Spotted Striker 14408 | -2/Protoforge | Spotted Executioner 14408 | -2/Protoforge | Spotted Overlord 14411 | -2/Protoforge | Found Exp. Core Analyzer 14426 | -2/Protoforge | Found Exp. Targeting Computer 14449 | -2/Protoforge | Lost 3 allies 14457 | -2/Protoforge | Spotted Striker 14472 | -2/Protoforge | Spotted Striker 14495 | -2/Protoforge | Spotted Striker 14498 | -2/Protoforge | Spotted Striker 14501 | -2/Protoforge | Spotted Striker 14540 | -2/Protoforge | Lost 8 allies 14859 | -2/Protoforge | Spotted Striker 14860 | -2/Protoforge | Spotted Striker 14863 | -2/Protoforge | Triborg destroyed during the operation 14863 | -2/Protoforge | Optimus emerged from Triborg 14866 | -2/Protoforge | Spotted Striker 14868 | -2/Protoforge | Spotted Executioner 14872 | -2/Protoforge | Spotted Striker 14880 | -2/Protoforge | Optimus destroyed during the operation 14910 | -2/Protoforge | Identified Omega Cannon 14911 | -2/Protoforge | Lost 6 allies 14911 | -2/Protoforge | Identified Hellfire Missile Launcher 15223 | -2/Protoforge | Spotted Executioner 15242 | -2/Protoforge | Spotted Executioner 15242 | -2/Protoforge | Spotted Striker 15245 | -2/Protoforge | Spotted Striker 15248 | -2/Protoforge | Build established: Scavenger-Scout 15257 | -2/Protoforge | Spotted Striker 15291 | -2/Protoforge | Lost 8 allies 15459 | -2/Protoforge | Spotted Striker 15462 | -2/Protoforge | Spotted Striker 15526 | -2/Protoforge | Lost 8 allies 15573 | -2/Protoforge | Spotted Striker 15601 | -2/Protoforge | UFD reported confirmed Drillbomb installation 15643 | -2/Protoforge | Spotted Hotshot 15657 | -2/Protoforge | Spotted Striker 15661 | -2/Protoforge | UFD reported confirmed Drillbomb installation 15698 | -2/Protoforge | Spotted Striker 16964 | -2/Protoforge | UFD reported confirmed Drillbomb installation 17164 | -2/Protoforge | UFD reported confirmed Drillbomb installation 18020 | -2/Protoforge | UFD reported confirmed Drillbomb installation 24216 | -2/Protoforge | UFD reported confirmed Drillbomb installation 47364 | -2/Protoforge | UFD reported confirmed Drillbomb installation 58982 | -2/Protoforge | UFD reported confirmed Drillbomb installation 100282 | -2/Protoforge | Spotted Executioner 100312 | -2/Protoforge | Discovered exit to Access (range 22) 100313 | -2/Protoforge | Spotted Hotshot 100379 | -2/Protoforge | Installed UFD Drillbomb at designated target 100379 | -2/Protoforge | UFD reported confirmed Drillbomb installation 100385 | -2/Protoforge | Spotted Executioner 100403 | -2/Protoforge | Spotted Executioner 100417 | -2/Protoforge | Spotted Executioner 100507 | -2/Protoforge | Spotted Executioner 100530 | -2/Protoforge | Spotted 02F**-K 100552 | -2/Protoforge | P-80 Master assimilated allied 02F**-D 100622 | -2/Protoforge | Spotted Executioner 100681 | -2/Protoforge | Lost 3 allies 100808 | -2/Protoforge | Spotted Decapitator 100808 | -2/Protoforge | Spotted Decapitator 100808 | -2/Protoforge | Spotted Decapitator 100887 | -2/Protoforge | Spotted Hotshot 100931 | -2/Protoforge | Spotted Executioner 100962 | -2/Protoforge | Spotted Executioner 101015 | -2/Protoforge | Spotted Executioner 101015 | -2/Protoforge | Spotted Striker 101015 | -2/Protoforge | Spotted Striker 101015 | -2/Protoforge | Spotted Striker 101058 | -2/Protoforge | Spotted Executioner 101060 | -2/Protoforge | Spotted Executioner 200131 | -2/Protoforge | Spotted Executioner 200172 | -2/Protoforge | Spotted Executioner 200172 | -2/Protoforge | Spotted Executioner 200202 | -2/Protoforge | Spotted Executioner 200249 | -2/Protoforge | Lost 8 allies 200354 | -2/Protoforge | Spotted Striker 200388 | -2/Protoforge | Spotted Striker 200388 | -2/Protoforge | Spotted Striker 200394 | -2/Protoforge | Spotted Executioner 200421 | -2/Protoforge | Lost 3 allies 200435 | -2/Protoforge | Spotted Executioner 200455 | -2/Protoforge | Spotted Executioner 200487 | -2/Protoforge | Spotted Executioner 200500 | -2/Protoforge | Destroyed Executioner 200502 | -2/Protoforge | Spotted Executioner 200538 | -2/Protoforge | Spotted Executioner 200543 | -2/Protoforge | Lost 11 allies 200758 | -2/Protoforge | Spotted Executioner 200758 | -2/Protoforge | Spotted Executioner 200821 | -2/Protoforge | Spotted Striker 200836 | -2/Protoforge | Spotted Striker 200840 | -2/Protoforge | Spotted Striker 200905 | -2/Protoforge | Lost 13 allies 200913 | -2/Protoforge | Found Cep. Network Penetrator 200934 | -2/Protoforge | Spotted Executioner 200935 | -2/Protoforge | Spotted Executioner 200975 | -2/Protoforge | Spotted Striker 201027 | -2/Protoforge | Spotted Executioner 201072 | -2/Protoforge | Spotted Striker 201073 | -2/Protoforge | Spotted Executioner 201086 | -2/Protoforge | Spotted Striker 201086 | -2/Protoforge | Spotted Striker 201097 | -2/Protoforge | Destroyed Striker 201108 | -2/Protoforge | Destroyed Executioner 201125 | -2/Protoforge | Spotted Executioner 201125 | -2/Protoforge | Spotted Striker 201138 | -2/Protoforge | Lost 8 allies 201144 | -2/Protoforge | Destroyed Striker 201176 | -2/Protoforge | Spotted Striker 201259 | -2/Protoforge | Spotted Executioner 201259 | -2/Protoforge | Destroyed Executioner 201288 | -2/Protoforge | Spotted Striker 201290 | -2/Protoforge | Spotted Striker 201309 | -2/Protoforge | Destroyed 8 combat bots 201323 | -2/Protoforge | Lost 13 allies 201333 | -2/Protoforge | Spotted Executioner 201338 | -2/Protoforge | Destroyed Executioner 201364 | -2/Protoforge | Destroyed Executioner 201368 | -2/Protoforge | Spotted Striker 201369 | -2/Protoforge | Destroyed Striker 201390 | -2/Protoforge | Destroyed 9 combat bots 201393 | -2/Protoforge | Lost 3 allies 201424 | -2/Protoforge | Spotted Striker 201425 | -2/Protoforge | Destroyed Striker 201428 | -2/Protoforge | Spotted Striker 201480 | -2/Protoforge | Destroyed 9 combat bots 201482 | -2/Protoforge | Lost 6 allies 201517 | -2/Protoforge | Spotted Executioner 201518 | -2/Protoforge | Spotted Striker 201592 | -2/Protoforge | Spotted Striker 201594 | -2/Protoforge | Destroyed Striker 201596 | -2/Protoforge | Spotted Striker 201598 | -2/Protoforge | Destroyed Striker 201625 | -2/Protoforge | Spotted Executioner 201652 | -2/Protoforge | Spotted Executioner 201657 | -2/Protoforge | Found Exp. Core Analyzer 201694 | -2/Protoforge | Spotted Executioner 201750 | -2/Protoforge | Additional patrols dispatched to research labs 201757 | -2/Protoforge | Spotted Immortal 201788 | -2/Protoforge | Spotted Executioner 202060 | -2/Protoforge | Found UFD Drillbomb 202084 | -2/Protoforge | Installed UFD Drillbomb at designated target 202084 | -2/Protoforge | UFD reported confirmed Drillbomb installation 202085 | -2/Protoforge | UFD began Drillbomb countdown 202112 | -2/Protoforge | Found Exp. System Purifier 202133 | -2/Protoforge | Spotted Executioner 202133 | -2/Protoforge | Spotted Executioner 202182 | -2/Protoforge | Spotted Striker 202185 | *** | Defending 0bPrime! Last Messages --------------- 02182_ 0bP_NET: Dammit not like that... 02183_ 0bP_NET: Okay how about this, the iron fist is going to be less iron in T-4. 02183_ Slug penetrates 02F**-D. 02184_ 0bP_NET: That's a little better. 02184_ P-80 Master hacks 02F**-D, rebooting. 02184_ Slug penetrates P-80 Master. 02184_ Slug penetrates H-88 Terminator. 02184_ Striker suffers critical hit (Blast). 02185_ Acquired 10 matter. 02185_ 0bP_NET: PRAISE BE TO GREAT NUT! 02185_ Slug penetrates P-80 Master. 02185_ P-80 Master suffers critical hit (Destroy). 02185_ Slug penetrates Striker. 02185_ Beam penetrates Forge Plexus. 02186_ 0bP_NET: Dammit, I said..., ugh, T-1 folks! Take cover! 02186_ Slug penetrates Reinforced Barrier. 02186_ Slug penetrates P-80 Master. 02186_ Slug penetrates Forge Plexus. 02187_ 02F**-D system terminally corrupted. Map ----- +----------------------------------------------------+ | %%%%%%%%%%%%%%%"""""""""""""""""""""%%%%%%%%%%%%%% | | %%%%%%%%%%%%%%"""""""""""""""""""""""%%%%%%%%%%%%% | | %%%%%%%%%%%%%"""""""""""""""""""""""""%%%%%%%%%%%% | | %%%%%%%%%%%%""""""""""""" """""""""""""%%%%%%%%%%% | | %%%%%%%%%%%%""""""""""""" """""""""""""%%%%%%%%%%% | | %%%%%%%%%%%%""""""""""""" """""""""""""%%%%%%%%%%% | | %%%%%%%%%%%"""""""""""""" """"""""""""""%%%%%%%%%% | | %%%%%%%%%%%"""""""""""""" """"""""""""""%%%%%%%%%% | | %%%%%%%%%%%"""""""""""""" """"""""""""""%%%%%%%%%% | | %%%%%%%%%%%"""""""""""""" """"""""""""""%%%%%%%%%% | | %%%%%%%%%%%"""""""""""""" """"""""""""""%%%%%%%%%% | | %%%%%%%%%%%"""""""""""""" """"""""""""""%%%%%%%%%% | | %%%%%%%%%%%"""""""""""""" """"""""""""""%%%%%%%%%% | | %%%%%%%%%%%"""""""""""""" """"""""""""""%%%%%%%%%% | | %%%%%%%%%%%"""""""""""""" """"""""""""""%%%%%%%%%% | | %%%%%%%%%%%%""""""""""""" """""""""""""%%%%%%%%%%% | | %%%%%%%%%%%%""""""""""""" """""""""""""%%%%%%%%%%% | | %%%%%%%%%%%%""""""""""""" """""""""""""%%%%%%%%%%% | | %%%%%%%%%%%%%"""""""""""" """"""""""""%%%%%%%%%%%% | | %%%%%%%%%%%%%%""""""""""" """""""""""%%%%%%%%%%%%% | | %%%%%%%%%%%%%%%"""""""""" """"""""""s%%%%%%%%%%%%% | | %%%%%%%%%%%%%%%%""""""""" """""""""%%%%s%E%%%%%%%% | | %%%%%%%%%%%%%%%%%"""""""" """"""""%%%%%%%%%%%%%%%% | | %%%%%%%n%%%%%%%%%%""""""" """""""%%%%%%%%%%%%%%%%% | | %%%%%%%%%%%%%%%%%%%%%"""" """"%%%%%%%%%%%%%%%%%%%% | | %%%%%%%%%%%%%%%%%%%%%%%%%@%%%%%%%%%%%%%%%%%%%%%%%% | | %%%%%%%n%%%%%%%%%%%%%%%%%%%%%%%%%%%%%%%%%%%%%%%%%% | | %%%%%%%%%%%%%%%%%%%%%%%%%%%%%%%%%%%%%%%%%%%%%%%%%% | | %%%%%%%%%%%%%%%%%%%%%%%%%%%%%%%%%%%%%%%%%%%%%%%%%% | | %%%%%%%%%%%%%%%%%E%s%%%%%%%%%%%%%%%E%%%%%%%%%s%%%% | | %%%%%%%%n%%%%%%%%%s%s%%%%%%%%%%%%%%%%%%%%!%%%%%%% | | %%%%%%%%%%%%%%%%%%%%%%%%%%%%%%%%%%%%%%%%%%%%%%% = | | %%%%%%%%%%%%%%%%%%%%%%s%%%%%s %%% %% %% % %% | | %%%%%%%%n%%%%%%%%%%%%%%%%% %%%%s %%% E%%%% %% | | %%%%%%%%b%%%%%%%%%%%s%%SS%%% % %%%%% % % % % | | %%%%%%%ph%%%%%%%%%%%%%%SS% % % %%% %% | | %%%%%%%%pK%%%%% %%%%%% % s % % % | | %%%%%%%%%%%%%%%%%%%%%%% % % | | %%%%%%%%%%%%% %%%%% " | | %%%%%%%%%%% %%%%% %% | | ##%!####################################### #### | | [####! =# # # % "" | | %!# # #= *!! !" " ""??" "# #"" ###" " | | !### [## * !* ## #######"" | | ### ? #= [ ## # # ######"" | | ? #! [! #=### ### ### #######"" | | # #=!| ###########? #### #######"Y | | ## ?################## #############"" | | ?##################### #############"" | | ?###?###############################"" | +----------------------------------------------------+ Best States ------------- Heat Dissipation 75 Coolant Potential 120 Energy Generation 47 Energy Capacity 1450 Matter Stores 300 Matter Capacity 300 Sight Range 23 Robot Scan Range 20 Terrain Scan Density 10 Jamming Range 16 Armor Coverage 450 Resistance: EM 15 Core Shielding 30 Evasion (%) 80 Targeting Accuracy 12 Core Analysis 12 Recoil Reduction 2 Offensive Hacking 50 Defensive Hacking 11 Authchip Count 1 Item Schematics ----------------- Biomechanical Wings | -6/Factory | Scanalyzed Imp. Heavy Treads | -6/Factory | Downloaded Riot Gun | -6/Zion | Free Battle Cannon | -6/Zion | Free Flamer | -6/Zion | Free Arc Thrower | -6/Zion | Free Imp. Arc Projector | -6/Zion | Archive Nuclear Pulse Thruster | -6/Zion | Archive Phase Shifter | -6/Zion | Archive Hvy. Machine Gun | -6/Zion | Archive Enh. Gauss Cannon | -6/Zion | Archive Coil Gun | -6/Zion | Archive Imp. Focal Shield | -6/Zion | Archive Adv. Cryofiber Web | -6/Zion | Archive Lrn. Proton Cannon | -6/Zion | Archive Enh. Optical Array | -6/Zion | Archive Imp. Component Analysis Suite | -6/Zion | Archive Adv. Sensor Array | -6/Zion | Archive Power Sword | -6/Zion | Archive Adv. Coolant Injector | -6/Zion | Archive Cld. Cesium-ion Thruster | -5/Factory | Scanalyzed Com. Linear Accelerator | -2/Protoforge | Archive Hvy. Tesla Rifle | -2/Protoforge | Archive Coolant Network | -2/Protoforge | Archive Exp. Signal Interpreter | -2/Protoforge | Archive Imp. Lightning Gun | -2/Protoforge | Archive Hvy. Antimatter Reactor | -2/Protoforge | Archive Spectral Analyzer | -2/Protoforge | Archive Robot Schematics ------------------ R-06 Scavenger | -6/Zion | Archive A-15 Conveyor | -6/Zion | Archive X-82 Rainmaker | -6/Zion | Archive R-10 Processor | -2/Protoforge | Archive K-01 Serf | -2/Protoforge | Archive Fabricated ------------ Cld. Cesium-ion Thruster | x1 | -4/Factory | Authchip Repaired ---------- Field Propulsion Drive | 50% | -4/Factory Field Propulsion Drive | 30% | -2/Testing Studied --------- Nuclear Pulse Array | -5/Factory | Hacked Field Propulsion Drive | -5/Factory | Hacked Lgt. Ion Engine | -5/Factory | Hacked Nuclear Pulse Thruster | -5/Factory | Hacked Lrn. Missile Launcher | -5/Factory | Hacked Mic. Nuclear Core | -4/Factory | Hacked Field Propulsion Array | -3/Quarantine | Hacked Alien Tech Used ----------------- Dimensional Node Initializer Subatomic Replicator Sigix Broadsword Core Cannon Supercharged TR Achievements -------------- None Challenges ------------ None Game ------ Seed HardlightHackingAnalyzer Manual? 0 Play Time 06:50:14 Cumulative 383.6 hours Start 2026.08.11 @ 18:40:18 End 2026.08.12 @ 19:28:38 Sessions 3 Manual Loads 0 Difficulty Rogue Special Mode None Game No. 232 Rogue 228 Adventurer 4 Explorer 0 Win Type 9 Total 114 Types 87/0/13/3/2/1/2/0/0/6 Lore% 92 Gallery% 75 Achievement% 73 Wizard Run 0 Options --------- Layout 0 ASCII 0 Keyboard 1 Movement Vi Keybinds 1 Fullscreen 2 Font 18/SmallcapsGlow Map View 76x50 Zoom Use 0% Tactical HUD 1 Map Filters NONE Filters NONE Steam 1 RUN: a79dd1a0-0e9c-4251-9e55-89941ab86c32